fUSD/lending_fUSD_20260414
["ID","MTS","AMOUNT","RATE_DAILY","PERIOD"]
[420472326,1776123044705,-500.0,0.00015299,2]
[420472327,1776123044722,-500.0,0.00015299,2]
[420472328,1776123044733,-500.0,0.00015299,2]
[420472329,1776123044748,-500.0,0.00015299,2]
[420472330,1776123044761,-500.0,0.00015299,2]
[420472331,1776123044772,-500.0,0.00015299,2]
[420472332,1776123044795,-500.0,0.00015299,2]
[420472333,1776123044809,-500.0,0.00015299,2]
[420472334,1776123044818,-500.0,0.00015299,2]
[420472335,1776123044829,-427.43,0.00015299,2]
[420472336,1776123044839,-759485.76966534,0.000153,2]
[420472337,1776123044855,-337885.3000487,0.000153,2]
[420472338,1776123044877,-170736.74380737,0.000153,2]
[420472339,1776123044901,-933.00786227,0.000153,2]
[420472340,1776123044913,-2913.97962855,0.000153,2]
[420472341,1776123044943,-474.24616922,0.000153,2]
[420472342,1776123044955,-324.0815859,0.000153,2]
[420472343,1776123045593,-2472.0,0.00014305,2]
[420472344,1776123045621,-31431.43168807,0.000153,2]
[420472345,1776123045635,-603994.57880651,0.000153,2]
[420472346,1776123045661,-876.28393942,0.000153,2]
[420472363,1776123046282,-448.87113101,0.00013698,2]
[420472365,1776123046312,-51.12886899,0.00013698,2]
[420472367,1776123046325,-500.0,0.00013698,2]
[420472369,1776123046339,-212.96011829,0.0001439,2]
[420472371,1776123046353,-8386.64077493,0.000153,2]
[420472373,1776123046368,-26983.51359867,0.000153,2]
[420472376,1776123046398,-3158.00000427,0.000153,2]
[420472378,1776123046413,-2701.44760208,0.000153,2]
[420472381,1776123046431,-8315.46359074,0.000153,2]
[420472391,1776123047330,-376.78350335,0.000153,2]
[420472392,1776123250611,-300.0,0.00010492,2]
[420472393,1776123731596,-375.0,0.000102,3]
[420472394,1776123746729,-250.0,0.000103,2]
[420472395,1776123761793,-4468.01,0.000104,5]
[420472396,1776123762083,-1063.99,0.000104,5]
[420472397,1776123778039,-250.0,0.00010415,2]
[420472398,1776123783509,165.3,9.218e-05,2]
[420472399,1776123816612,302.0,0.00010492,2]
[420472400,1776123984384,201.67793137,0.00010394,2]
[420472401,1776124105165,2098.11,5.992e-05,2]
[420472402,1776124105384,2098.11,6.307e-05,2]
[420472403,1776124105701,2098.11,6.623e-05,2]
[420472404,1776124105910,2098.11,6.938e-05,2]
[420472405,1776124106127,1103.89206863,7.253e-05,2]
[420472406,1776124106195,994.21793137,7.253e-05,2]
[420472407,1776124106348,2098.11,7.569e-05,2]
[420472408,1776124107736,2098.11,7.884e-05,2]
[420472409,1776124107811,2098.11,8.2e-05,2]
[420472410,1776124107886,2098.11,8.515e-05,2]
[420472411,1776124107964,613.35206863,8.83e-05,2]
[420472412,1776124108020,1484.75793137,8.83e-05,2]
[420472413,1776124108112,2098.11,9.146e-05,2]
[420472414,1776124108182,2098.11,9.461e-05,2]
[420472415,1776124108374,2098.11,9.776e-05,2]
[420472416,1776124108913,2098.11,0.00010092,2]
[420472417,1776124108998,122.81206863,0.00010407,2]
[420472418,1776124109041,1975.29793137,0.00010407,2]
[420472431,1776124234436,-155.0,0.00010492,3]
[420472432,1776124234446,-155.0,0.00010492,3]
[420472433,1776124234456,-242.0,0.00010492,3]
[420472434,1776124234465,-250.0,0.00010492,2]
[420472435,1776124234475,-200.0,0.00010492,2]
[420472436,1776124234484,-150.0,0.00010493,2]
[420472437,1776124234494,-300.0,0.00010493,2]
[420472438,1776124234503,-300.0,0.00010493,2]
[420472439,1776124234513,-63.52532736,0.00010494,2]
[420472440,1776124234526,-436.47467264,0.00010494,2]
[420472441,1776124234536,-200.0,0.00010494,2]
[420472442,1776124234546,-500.0,0.00010494,2]
[420472443,1776124234556,-151.0,0.00010494,2]
[420472444,1776124234568,-500.0,0.00010494,2]
[420472445,1776124234577,-151.0,0.00010494,2]
[420472446,1776124234587,-500.0,0.00010494,2]
[420472447,1776124234598,-151.0,0.00010494,2]
[420472448,1776124234610,-500.0,0.00010494,2]
[420472449,1776124234620,-151.0,0.00010494,2]
[420472450,1776124234629,-500.0,0.00010494,2]
[420472451,1776124234653,-151.0,0.00010494,2]
[420472452,1776124234663,-500.0,0.00010494,2]
[420472453,1776124234678,-151.0,0.00010494,2]
[420472454,1776124234692,-500.0,0.00010494,2]
[420472455,1776124234701,-500.0,0.00010494,2]
[420472456,1776124234716,-151.0,0.00010494,2]
[420472457,1776124234726,-151.0,0.00010494,2]
[420472458,1776124234736,-500.0,0.00010494,2]
[420472459,1776124234750,-500.0,0.00010494,2]
[420472460,1776124234766,-151.0,0.00010494,2]
[420472461,1776124234776,-151.0,0.00010494,2]
[420472462,1776124234787,-151.0,0.00010494,2]
[420472463,1776124234797,-1243.57659106,0.00010494,2]
[420472464,1776124234818,-1389.12509704,0.00010499,2]
[420472465,1776124234827,-1000.0,0.000105,2]
[420472466,1776124234836,-2098.11,0.00010723,2]
[420472467,1776124234848,-200.0,0.00010833,2]
[420472468,1776124234863,-500.0,0.00010959,2]
[420472469,1776124234873,-2098.11,0.00011038,2]
[420472470,1776124234883,-4643.38138839,0.00011085,2]
[420472471,1776124234896,-242.0,0.00011098,3]
[420472472,1776124234906,-2098.11,0.00011353,2]
[420472473,1776124234917,-198.15,0.00011357,2]
[420472474,1776124234928,-1924.38,0.00011394,2]
[420472475,1776124234944,-2000.0,0.00011398,2]
[420472476,1776124234953,-150.0,0.00011419,2]
[420472477,1776124234963,-442940.7628,0.00011441,2]
[420472478,1776124234986,-927.42,0.00011452,2]
[420472479,1776124234996,-150.0,0.000115,2]
[420472480,1776124235012,-500.0,0.000115,2]
[420472481,1776124235039,-255.0,0.00011521,2]
[420472482,1776124235054,-165.3,0.00011523,2]
[420472483,1776124235089,-420.0,0.00011536,2]
[420472484,1776124235128,-420.0,0.00011536,2]
[420472485,1776124235146,-195.0,0.00011541,2]
[420472486,1776124235178,-4727.8629485,0.00011541,2]
[420472487,1776124235193,-300.0,0.00011541,2]
[420472488,1776124235206,-195.0,0.00011541,2]
[420472489,1776124235226,-250.0,0.00011541,2]
[420472490,1776124235241,-195.0,0.00011541,2]
[420472491,1776124235251,-250.0,0.00011541,2]
[420472492,1776124235269,-195.0,0.00011541,2]
[420472493,1776124235278,-195.0,0.00011541,2]
[420472494,1776124235288,-5000.0,0.00011541,2]
[420472495,1776124235298,-302.54694517,0.0001155,2]
[420472496,1776124235322,-438.46779212,0.0001155,2]
[420472497,1776124235332,-204.07233211,0.0001155,2]
[420472498,1776124235342,-2098.11,0.00011669,2]
[420472499,1776124235365,-242.0,0.00011703,3]
[420472500,1776124235375,-500.0,0.00011945,2]
[420472501,1776124235385,-2098.11,0.00011984,2]
[420472502,1776124235401,-198.15,0.00011988,2]
[420472503,1776124235410,-150.99,0.00012087,2]
[420472504,1776124235419,-9999.99,0.00012087,2]
[420472505,1776124235428,-999.99,0.00012087,2]
[420472506,1776124235439,-2336.63,0.00012087,2]
[420472507,1776124235449,-590.0,0.0001211,2]
[420472508,1776124235459,-1051.89,0.0001214,2]
[420472509,1776124235468,-242.0,0.00012309,3]
[420472510,1776124235477,-155.0,0.0001241,3]
[420472511,1776124235487,-198.15,0.00012619,2]
[420472512,1776124235497,-433.0,0.00012654,2]
[420472513,1776124235507,-587.0,0.00012684,2]
[420472514,1776124235516,-587.0,0.00012684,2]
[420472515,1776124235530,-189.8395,0.000127,2]
[420472516,1776124235540,-2000.0,0.00012823,2]
[420472517,1776124235551,-242.0,0.00012915,3]
[420472518,1776124235567,-578.20924308,0.00012943,2]
[420472519,1776124235577,-200.0,0.00012943,2]
[420472520,1776124235587,-9552.16786547,0.00012943,2]
[420472521,1776124235600,-1428.38747117,0.00012943,2]
[420472522,1776124235616,-721.12765535,0.00012943,2]
[420472523,1776124235627,-500.0,0.00012943,2]
[420472524,1776124235640,-151.0,0.00012943,2]
[420472525,1776124235650,-500.0,0.00012943,2]
[420472526,1776124235660,-500.0,0.00012943,2]
[420472527,1776124235669,-500.0,0.00012943,2]
[420472528,1776124235680,-743.50770149,0.00012943,2]
[420472529,1776124235692,-500.0,0.00012943,2]
[420472530,1776124235702,-500.0,0.00012943,2]
[420472531,1776124235712,-500.0,0.00012943,2]
[420472532,1776124235721,-158.54884396,0.00012943,2]
[420472533,1776124235736,-500.0,0.00012943,2]
[420472534,1776124235745,-500.0,0.00012943,2]
[420472535,1776124235755,-174.61919141,0.00012943,2]
[420472536,1776124235764,-500.0,0.00012943,2]
[420472537,1776124235779,-500.0,0.00012943,2]
[420472538,1776124235788,-500.0,0.00012943,2]
[420472539,1776124235798,-235.75327194,0.00012943,2]
[420472540,1776124235809,-244.476143,0.00012943,2]
[420472541,1776124235820,-253.52176029,0.00012943,2]
[420472542,1776124235829,-262.90206542,0.00012943,2]
[420472543,1776124235842,-363.34675934,0.00012943,2]
[420472544,1776124235851,-279.9045709,0.00012943,2]
[420472545,1776124235865,-233.89,0.0001295,2]
[420472546,1776124235879,-7481.70127499,0.00012998,2]
[420472547,1776124235888,-500.0,0.00012998,2]
[420472548,1776124235898,-151.0,0.00012998,2]
[420472549,1776124235916,-250.0,0.00013,2]
[420472550,1776124235930,-500.0,0.00013053,2]
[420472551,1776124235941,-151.0,0.00013053,2]
[420472552,1776124235969,-4309.22,0.00013104,2]
[420472553,1776124235981,-500.0,0.00013108,2]
[420472554,1776124236007,-151.0,0.00013108,2]
[420472555,1776124236035,-500.0,0.00013163,2]
[420472556,1776124236064,-151.0,0.00013163,2]
[420472557,1776124236079,-151.0,0.00013218,2]
[420472558,1776124236091,-233.89,0.00013224,2]
[420472559,1776124236113,-198.15,0.0001325,2]
[420472560,1776124236125,-151.0,0.00013273,2]
[420472561,1776124236138,-151.0,0.00013328,2]
[420472562,1776124236159,-151.0,0.00013383,2]
[420472563,1776124236170,-500.0,0.00013399,2]
[420472564,1776124236183,-200.0,0.00013491,2]
[420472565,1776124236207,-1481.23780761,0.00013491,2]
[420472566,1776124236219,-181.08010149,0.00013491,2]
[420472567,1776124236230,-233.89,0.00013498,2]
[420472568,1776124236249,-506.0,0.000135,2]
[420472569,1776124236259,-500.0,0.00013507,2]
[420472570,1776124236269,-242.0,0.0001352,3]
[420472571,1776124236280,-500.0,0.00013698,2]
[420472572,1776124236297,-500.0,0.00013698,2]
[420472573,1776124236306,-500.0,0.00013698,2]
[420472574,1776124236318,-500.0,0.00013698,2]
[420472575,1776124236327,-500.0,0.00013698,2]
[420472576,1776124236339,-500.0,0.00013698,2]
[420472577,1776124236348,-500.0,0.00013698,2]
[420472578,1776124236366,-500.0,0.00013698,2]
[420472579,1776124236376,-500.0,0.00013698,2]
[420472580,1776124236393,-500.0,0.00013698,2]
[420472581,1776124236412,-500.0,0.00013698,2]
[420472582,1776124236423,-500.0,0.00013698,2]
[420472583,1776124236436,-500.0,0.00013698,2]
[420472584,1776124236456,-500.0,0.00013698,2]
[420472585,1776124236466,-500.0,0.00013698,2]
[420472586,1776124236481,-500.0,0.00013698,2]
[420472587,1776124236500,-500.0,0.00013698,2]
[420472588,1776124236510,-500.0,0.00013698,2]
[420472589,1776124236519,-500.0,0.00013698,2]
[420472590,1776124236546,-500.0,0.00013698,2]
[420472591,1776124236556,-500.0,0.00013698,2]
[420472592,1776124236570,-500.0,0.00013698,2]
[420472593,1776124236599,-500.0,0.00013698,2]
[420472594,1776124236613,-569.21254605,0.00013698,2]
[420472595,1776124236647,-500.0,0.00013698,2]
[420472596,1776124236657,-292.04688833,0.00013698,2]
[420472597,1776124236694,-500.0,0.00013698,2]
[420472598,1776124236716,-500.0,0.00013698,2]
[420472599,1776124236737,-500.0,0.00013698,2]
[420472600,1776124236764,-325.0,0.00013699,2]
[420472601,1776124236794,-1618.63,0.00013699,2]
[420472602,1776124236830,-233.89,0.00013772,2]
[420472603,1776124236845,-165.3,0.00013827,2]
[420472604,1776124236860,-198.15,0.00013881,2]
[420472605,1776124236879,-283.0,0.00013892,2]
[420472606,1776124236889,-150.0,0.00013898,2]
[420472607,1776124236900,-150.0,0.00013898,2]
[420472608,1776124236915,-150.0,0.00013898,2]
[420472609,1776124236930,-500.0,0.00013898,2]
[420472610,1776124236943,-500.0,0.00013898,2]
[420472611,1776124236957,-526.0,0.00013898,2]
[420472612,1776124236969,-666.0,0.00013945,2]
[420472613,1776124236984,-823.0,0.00013945,2]
[420472614,1776124236999,-240.2604,0.00014,2]
[420472615,1776124237009,-250.0,0.00014025,2]
[420472616,1776124237035,-200.0,0.00014039,2]
[420472617,1776124237441,-1536.04360649,0.00014039,2]
[420472618,1776124237451,-187.78006525,0.00014039,2]
[420472619,1776124237464,-1604.30948263,0.0001404,2]
[420472620,1776124237477,-233.93,0.00014045,2]
[420472621,1776124237491,-160.0,0.00014113,2]
[420472622,1776124237500,-3150.587103,0.00014113,2]
[420472623,1776124237516,-6141.174206,0.00014113,2]
[420472624,1776124237532,-242.0,0.00014126,3]
[420472625,1776124237542,-120.97777631,0.00014148,2]
[420472626,1776124237561,-723.749995,0.00014148,2]
[420472627,1776124237577,-696.20302202,0.00014148,2]
[420472628,1776124237589,-831.64957871,0.00014148,2]
[420472629,1776124237605,-2772.47495914,0.00014148,2]
[420472630,1776124237624,-1895.78926475,0.00014148,2]
[420472631,1776124237641,-81.40198526,0.00014148,2]
[420472632,1776124237654,-160.0,0.000142,2]
[420472633,1776124237665,-1000.0,0.000142,5]
[420472634,1776124237675,-401.281542,0.00014209,7]
[420472635,1776124237695,-160.0,0.0001421,2]
[420472636,1776124237706,-541.978088,0.0001421,2]
[420472637,1776124237715,-923.956176,0.0001421,2]
[420472638,1776124237731,-2000.0,0.00014248,2]
[420472639,1776124237745,-7122.24658119,0.00014265,2]
[420472640,1776124237755,-2100.0,0.000143,5]
[420472641,1776124237775,-155.0,0.00014328,3]
[420472642,1776124237792,-7122.24658119,0.00014382,2]
[420472643,1776124237806,-1600.0,0.00014383,2]
[420472644,1776124237827,-1618.63,0.00014384,2]
[420472645,1776124237843,-3206.355,0.00014384,2]
[420472646,1776124237865,-223.021,0.00014384,2]
[420472647,1776124237886,-500.0,0.000144,2]
[420472648,1776124237902,-3100.0,0.000144,5]
[420472649,1776124237918,-1348.0,0.00014401,2]
[420472650,1776124237931,-3654.993,0.00014401,2]
[420472651,1776124237943,-1047.0,0.00014401,2]
[420472652,1776124237957,-150.0,0.00014401,2]
[420472653,1776124237974,-926.0,0.00014401,2]
[420472654,1776124237985,-1218.0,0.00014401,2]
[420472655,1776124237996,-273.0,0.00014401,2]
[420472656,1776124238013,-217.0,0.00014401,2]
[420472657,1776124238023,-200.0,0.00014401,2]
[420472658,1776124238035,-416.0,0.00014401,2]
[420472659,1776124238054,-150.0,0.00014401,2]
[420472660,1776124238067,-2472.0,0.00014401,2]
[420472661,1776124238078,-500.0,0.00014417,2]
[420472662,1776124238098,-7122.24658119,0.00014499,2]
[420472663,1776124238112,-539.79299729,0.000145,2]
[420472664,1776124238122,-4200.0,0.000145,5]
[420472665,1776124238141,-198.15,0.00014512,2]
[420472666,1776124238150,-200.0,0.00014587,2]
[420472667,1776124238161,-1592.87721993,0.00014587,2]
[420472668,1776124238173,-194.72792766,0.00014587,2]
[420472669,1776124238187,-500.0,0.00014599,2]
[420472670,1776124238198,-500.0,0.00014599,2]
[420472671,1776124238208,-2000.0,0.000146,2]
[420472672,1776124238217,-5200.0,0.000146,5]
[420472673,1776124238234,-7122.24658119,0.00014616,2]
[420472674,1776124238244,-1000.0,0.000147,5]
[420472675,1776124238253,-2000.0,0.000147,2]
[420472676,1776124238263,-242.0,0.00014732,3]
[420472677,1776124238279,-7122.24658119,0.00014732,2]
[420472678,1776124238289,-2000.0,0.000148,2]
[420472679,1776124238298,-1000.0,0.000148,5]
[420472680,1776124238308,-506.0,0.00014804,3]
[420472682,1776124238326,-4296.25514,0.00014818,2]
[420472684,1776124238335,-151.33604992,0.0001483,2]
[420472686,1776124238344,-7122.24658119,0.00014849,2]
[420472688,1776124238354,-866.0,0.0001485,2]
[420472690,1776124238373,-229.64609913,0.000149,2]
[420472692,1776124238382,-1000.0,0.000149,5]
[420472694,1776124238391,-2000.0,0.000149,2]
[420472695,1776124238403,-182.400701,0.00014919,7]
[420472696,1776124238419,-1108.591544,0.00014921,2]
[420472697,1776124238429,-7122.24658119,0.00014966,2]
[420472698,1776124238442,-171.33,0.00014975,2]
[420472699,1776124238458,-300.0,0.00015,2]
[420472700,1776124238468,-2000.0,0.00015,2]
[420472701,1776124238481,-152.0,0.0001504,5]
[420472702,1776124238505,-786.52,0.00015068,2]
[420472704,1776124238524,-1618.63,0.00015068,2]
[420472705,1776124238544,-800.96674089,0.00015068,2]
[420472706,1776124238575,-7122.24658119,0.00015083,2]
[420472707,1776124238631,-2000.0,0.000151,2]
[420472708,1776124238677,-200.0,0.00015135,2]
[420472709,1776124238717,-1651.81367706,0.00015135,2]
[420472710,1776124238730,-201.93286099,0.00015135,2]
[420472711,1776124238745,-198.15,0.00015143,2]
[420472712,1776124238756,-48894.10120908,0.0001515,2]
[420472713,1776124238765,-2000.0,0.0001515,2]
[420472714,1776124238775,-2000.0,0.0001515,2]
[420472715,1776124238787,-2000.0,0.0001516,2]
[420472716,1776124238796,-500.0,0.00015178,2]
[420472717,1776124238806,-2000.0,0.00015178,2]
[420472718,1776124238815,-399.1633955,0.00015178,2]
[420472719,1776124238861,-100.8366045,0.00015178,2]
[420472720,1776124238870,-200.0,0.00015178,2]
[420472721,1776124238879,-249.40288503,0.00015198,2]
[420472722,1776124238891,-9042.87549005,0.00015198,2]
[420472723,1776124238900,-5000.0,0.00015198,2]
[420472724,1776124238909,-9292.27837503,0.00015198,2]
[420472725,1776124238919,-9292.27837503,0.00015198,2]
[420472726,1776124238929,-9292.27837503,0.00015199,2]
[420472727,1776124238938,-9292.27837503,0.00015199,2]
[420472728,1776124238949,-9292.27837503,0.00015199,2]
[420472729,1776124238959,-9292.27837503,0.00015199,2]
[420472730,1776124238968,-9292.27837503,0.000152,2]
[420472731,1776124238981,-9292.27837503,0.000152,2]
[420472732,1776124238997,-195.93286655,0.000152,2]
[420472733,1776124239011,-1751.7095,0.000152,2]
[420472734,1776124239021,-1957.13533786,0.000152,2]
[420472735,1776124239051,-7122.24658119,0.000152,2]
[420472736,1776124239063,-9292.27837503,0.000152,2]
[420472738,1776124239106,-1818.43053438,0.000152,2]
[420472739,1776124239118,-2000.0,0.000152,2]
[420472741,1776124239141,-13200.2284044,0.000152,2]
[420472743,1776124239152,-180.6611155,0.00015226,2]
[420472745,1776124239162,-152.0,0.00015227,2]
[420472747,1776124239182,-250.0,0.00015233,2]
[420472749,1776124239195,-250.0,0.00015233,2]
[420472751,1776124239204,-363.0,0.00015249,2]
[420472752,1776124239219,-500.0,0.00015273,2]
[420472754,1776124239240,-500.0,0.00015273,2]
[420472756,1776124239249,-500.0,0.00015273,2]
[420472757,1776124239264,-500.0,0.00015273,2]
[420472758,1776124239281,-487.27836688,0.00015273,2]
[420472759,1776124239292,-12754.7529058,0.00015297,2]
[420472760,1776124239312,-150.0,0.00015297,2]
[420472761,1776124239325,-500.0,0.00015297,2]
[420472762,1776124239336,-500.0,0.00015297,2]
[420472763,1776124239355,-230826.65318962,0.00015298,2]
[420472764,1776124239375,-39030.58961756,0.00015298,2]
[420472765,1776124239393,-472.0526679,0.00015298,2]
[420472766,1776124239466,-699.49483532,0.00015298,2]
[420472779,1776124240862,-500.0,0.00013698,2]
[420472780,1776124240880,-154.0,0.00014968,2]
[420472781,1776124240901,-290.32999927,0.00015298,2]
[420472782,1776124240947,-600.0,0.00015298,2]
[420472783,1776124241014,-8794.02795487,0.00015298,2]
[420472784,1776124241059,-321.535,0.00015298,2]
[420472785,1776124241081,-1454.24614478,0.00015298,2]
[420472786,1776124241111,-1885.31298107,0.00015298,2]
[420472787,1776124241124,-898.06061579,0.00015298,2]
[420472788,1776124241147,-1188.74622491,0.00015298,2]
[420472789,1776124241158,-1349.90711029,0.00015298,2]
[420472790,1776124241301,-11011.45247982,0.00015298,2]
[420472791,1776124241318,-11470.821759,0.00015298,2]
[420472792,1776124241327,-296.7246268,0.00015298,2]
[420472793,1776124241336,-1464.8765341,0.00015299,2]
[420472794,1776124241345,-300.0,0.00015299,2]
[420472796,1776124241355,-500.0,0.00015299,2]
[420472797,1776124241369,-500.0,0.00015299,2]
[420472798,1776124241378,-362.86832607,0.00015299,2]
[420472799,1776124241388,-8107.06015335,0.000153,2]
[420472800,1776124241400,-1260.0,0.000153,2]
[420472801,1776124241413,-956.485885,0.000153,2]
[420472802,1776124241424,-1041.30749209,0.000153,2]
[420472804,1776124241435,-284.72599593,0.000153,2]
[420472805,1776124241448,-670.48004675,0.000153,2]
[420472806,1776124241460,-1583.41443103,0.000153,2]
[420472807,1776124241736,-500.0,0.000153,2]
[420472808,1776124241773,-500.0,0.000153,2]
[420472809,1776124241829,-69.0,0.000153,2]
[420472810,1776124241844,-927.79265174,0.000153,2]
[420472811,1776124241867,-662.0272939,0.000153,2]
[420472812,1776124242029,-3067848.44794112,0.000153,2]
[420472813,1776124242059,-7797.00312763,0.000153,2]
[420472828,1776124244850,-6026.0,0.00014401,2]
[420472829,1776124244860,-35409.63889057,0.000153,2]
[420472831,1776124246474,-4440.2538939,0.000153,2]
[420472832,1776124246548,-5411.88398372,0.000153,2]
[420472833,1776124246567,-7345.04999991,0.000153,2]
[420472834,1776124246581,-13017.28265597,0.000153,2]
[420472835,1776124246716,-5577.41348923,0.000153,2]
[420472836,1776124246737,-10169.62952678,0.000153,2]
[420472837,1776124246774,-32031.52631547,0.000153,2]
[420472838,1776124246915,-2539.86864379,0.000153,2]
[420472839,1776124246976,-7163.76299752,0.000153,2]
[420472840,1776124247487,-7144.42255992,0.000153,2]
[420472841,1776124247519,-500.0,0.000153,2]
[420472842,1776124257092,500.0,0.00010392,2]
[420472844,1776124326714,153.0,0.0001121,2]
[420472845,1776124327103,153.0,0.0001121,2]
[420472846,1776124388916,153.0,0.0001121,3]
[420472847,1776124448219,153.0,0.00011311,2]
[420472848,1776124511339,154.0,0.00011311,2]
[420472849,1776124511646,156.0,0.00011311,2]
[420472850,1776124567147,154.0,0.00011311,2]
[420472851,1776124625792,154.0,0.00011311,2]
[420472852,1776124662584,1577.0,0.000104,5]
[420472853,1776124679960,8269.01,0.00010575,2]
[420472854,1776124680016,10000.01,0.00010575,2]
[420472855,1776124680058,1451.73,0.00010575,2]
[420472856,1776124688390,154.0,0.00011311,2]
[420472859,1776124730314,500.0,0.00011309,2]
[420472860,1776124815865,205.0,9.8e-05,2]
[420472861,1776124862999,382.07801997,0.00011211,2]
[420472863,1776124899613,489.62832017,0.0001,2]
[420472864,1776124901701,394.28896217,7.888e-05,2]
[420472865,1776124918564,270.42800363,0.000107,2]
[420472866,1776124925843,9335.2930342,0.000107,2]
[420472867,1776124925881,10000.01,0.000107,2]
[420472868,1776124960134,-296.57345943,0.00010699,2]
[420472869,1776124960175,-450.0,0.00010699,2]
[420472870,1776124960216,-402.38653451,0.00010699,2]
[420472871,1776124960259,-500.0,0.00010699,2]
[420472872,1776124960290,-398.18569347,0.00010699,2]
[420472873,1776124960333,-500.0,0.00010699,2]
[420472874,1776124960369,-184.62356645,0.00010699,2]
[420472875,1776124960404,-500.0,0.00010699,2]
[420472876,1776124960448,-500.0,0.00010699,2]
[420472877,1776124960500,-500.0,0.00010699,2]
[420472878,1776124960562,-500.0,0.00010699,2]
[420472879,1776124960610,-36.47149228,0.00010699,2]
[420472880,1776124961112,-463.52850772,0.00010699,2]
[420472881,1776124961186,-500.0,0.00010699,2]
[420472882,1776124961336,-500.0,0.00010699,2]
[420472883,1776124961406,-500.0,0.00010699,2]
[420472884,1776124961453,-500.0,0.00010699,2]
[420472885,1776124961505,-500.0,0.00010699,2]
[420472886,1776124961556,-450.0,0.00010699,2]
[420472887,1776124961601,-500.0,0.00010699,2]
[420472888,1776124961647,-500.0,0.00010699,2]
[420472889,1776124961698,-500.0,0.00010699,2]
[420472890,1776124961921,-500.0,0.00010699,2]
[420472891,1776124961965,-500.0,0.00010699,2]
[420472892,1776124962025,-500.0,0.00010699,2]
[420472893,1776124962077,-500.0,0.00010699,2]
[420472894,1776124962119,-500.0,0.00010699,2]
[420472895,1776124962164,-500.0,0.00010699,2]
[420472896,1776124998553,500.0,0.00010699,2]
[420472897,1776124998609,500.0,0.00010699,2]
[420472898,1776124998670,606.43060942,0.00010699,2]
[420472899,1776124998731,500.0,0.00010699,2]
[420472900,1776124998807,485.45503785,0.00010699,2]
[420472901,1776124998876,500.0,0.00010699,2]
[420472902,1776124999021,500.0,0.00010699,2]
[420472903,1776124999111,295.19872926,0.00010699,2]
[420472906,1776125042082,112.92562347,0.00010699,2]
[420472907,1776125042116,187.07437653,0.00010699,2]
[420472908,1776125101080,1200.0,0.00010699,2]
[420472909,1776125166731,500.0,0.00010699,2]
[420472910,1776125166906,526.03658083,0.00010699,2]
[420472911,1776125166980,500.0,0.00010699,2]
[420472912,1776125167035,500.0,0.00010699,2]
[420472913,1776125178835,500.0,0.00010699,2]
[420472914,1776125178881,500.0,0.00010699,2]
[420472915,1776125178942,500.0,0.00010699,2]
[420472916,1776125179007,500.0,0.00010699,2]
[420472917,1776125179050,500.0,0.00010699,2]
[420472918,1776125179113,578.21176427,0.00010699,2]
[420472919,1776125179161,500.0,0.00010699,2]
[420472920,1776125179211,500.0,0.00010699,2]
[420472921,1776125179287,500.0,0.00010699,2]
[420472922,1776125179379,500.0,0.00010699,2]
[420472923,1776125179479,500.0,0.00010699,2]
[420472924,1776125179548,500.0,0.00010699,2]